{"text_format":"1","workbook":"xlsx","n_sheets":3,"sheets":["お客様記入シート(2成分系) ","お客様記入シート(3成分系) ","★記入例★"],"not_rendered":{"charts":0,"images":100,"macros":1,"external_links":0,"defined_names":3,"comments":3,"pivot_tables":0},"unopened":[],"bounds":{"document_bytes":16777216,"sheet_cells":100000,"rows_first":2000,"rows_last":500,"rows_between":2000,"halvings":0,"cell_chars":16384,"cell_head_chars":4096},"cells_cut":0,"cells_raw":0,"read":"whole","date_system":"1900"}

{"sheet":"お客様記入シート(2成分系) ","index":0,"n_rows":72,"n_cols":89,"rows_kept":72,"cut":false,"hidden":false,"merged":[[44,15,44,24],[45,15,45,24],[46,15,46,24],[48,15,48,24],[49,15,49,24],[50,15,50,24],[51,15,51,24],[43,25,43,34],[44,25,44,34],[45,25,45,34],[46,25,46,34],[48,25,48,34],[49,25,49,34],[50,25,50,34],[51,25,51,34],[57,48,57,52],[7,1,7,11],[7,12,7,44],[8,1,9,11],[8,12,9,27],[8,28,8,31],[8,32,8,44],[9,28,9,31],[9,32,9,44],[11,1,12,6],[11,7,11,11],[11,12,11,44],[12,7,12,11],[12,12,12,44],[21,8,21,14],[30,8,30,14],[21,25,21,43],[22,8,22,14],[17,8,17,14],[17,15,17,44],[38,35,51,44],[19,33,19,44],[25,1,34,1],[25,2,34,7],[15,1,24,1],[16,15,16,44],[16,8,16,14],[26,8,26,14],[32,20,32,23],[23,8,23,14],[18,15,18,25],[28,15,28,25],[28,26,28,32],[28,33,28,44],[29,15,29,25],[29,26,29,32],[29,33,29,44],[15,2,24,7],[15,8,15,14],[15,15,15,44],[18,8,18,14],[19,8,19,14],[18,33,18,44],[19,15,19,25],[19,26,19,32],[22,25,22,43],[20,8,20,14],[20,20,20,23],[1,47,1,49],[2,47,2,49],[3,47,3,49],[4,1,4,44],[6,1,6,11],[6,12,6,44],[10,1,10,11],[10,12,10,27],[10,28,10,31],[10,32,10,44],[31,8,31,14],[31,25,31,43],[26,15,26,44],[32,8,32,14],[33,8,33,14],[33,15,33,43],[23,15,23,43],[25,8,25,14],[25,15,25,44],[28,8,28,14],[29,8,29,14],[18,26,18,32],[27,8,27,14],[27,15,27,44],[24,8,24,14],[24,15,24,44],[31,15,31,18],[35,8,37,14],[37,15,37,24],[37,25,37,34],[37,35,37,44],[20,15,20,18],[21,15,21,18],[22,15,22,18],[20,24,20,44],[21,20,21,23],[22,20,22,23],[30,15,30,18],[30,20,30,23],[30,24,30,44],[31,20,31,23],[32,15,32,18],[32,25,32,43],[34,8,34,14],[34,15,34,44],[35,1,53,1],[35,2,53,7],[52,8,52,14],[43,8,43,14],[41,25,41,34],[42,25,42,34],[35,15,35,24],[35,25,35,34],[38,15,38,24],[44,8,44,14],[46,8,46,14],[48,8,48,14],[49,8,49,14],[50,8,50,14],[51,8,51,14],[45,8,45,14],[40,8,40,14],[41,8,41,14],[52,27,52,44],[53,8,53,14],[53,15,53,44],[39,15,39,24],[40,15,40,24],[41,15,41,24],[65,2,65,44],[59,20,59,21],[54,22,54,28],[55,22,55,28],[57,22,57,28],[58,22,58,28],[59,22,59,28],[56,15,56,19],[54,2,54,14],[54,15,54,19],[55,2,55,14],[61,2,61,14],[61,15,61,44],[56,26,56,43],[54,20,54,21],[55,20,55,21],[56,20,56,21],[57,20,57,21],[55,15,55,19],[58,20,58,21],[55,30,55,43],[35,35,36,44],[36,15,36,24],[36,25,36,34],[59,2,59,14],[59,15,59,19],[60,2,60,14],[60,15,60,44],[56,2,56,14],[57,15,57,19],[57,2,57,14],[58,2,58,14],[58,15,58,19],[52,15,52,26],[47,25,47,34],[42,15,42,24],[38,8,38,14],[42,8,42,14],[47,8,47,14],[38,25,38,34],[47,15,47,24],[39,25,39,34],[40,25,40,34],[39,8,39,14],[43,15,43,24]]}
[]
[null,null,null,null,null,null,null,null,null,null,null,null,null,null,null,null,null,null,null,null,null,null,null,null,null,null,null,null,null,null,null,null,null,null,null,null,null,null,null,null,null,null,null,null,"第1分析センター 分析1課",null,{"$f":"#REF!","v":{"$error":"#REF!"}},{"$f":"#REF!","v":{"$error":"#REF!"}}]
[null,null,null,null,null,null,null,null,null,null,null,null,null,null,null,null,null,null,null,null,null,null,null,null,null,null,null,null,null,null,null,null,null,null,null,null,null,null,null,null,null,null,null,null,"〒739-0622 広島県大竹市晴海2丁目10番22号",null,{"$f":"#REF!","v":{"$error":"#REF!"}},{"$f":"#REF!","v":{"$error":"#REF!"}}]
[null,null,null,null,null,null,null,null,null,null,null,null,null,null,null,null,null,null,null,null,null,null,null,null,null,null,null,null,null,null,null,null,null,null,null,null,null,null,null,null,null,null,null,null,"TEL：(0827)59-1800　FAX：(0827)59-1805",null,{"$f":"#REF!","v":{"$error":"#REF!"}},{"$f":"#REF!","v":{"$error":"#REF!"}},null,null,"(mg/kg)",null,null,"(torr)"]
[null,"オスマー型気液平衡測定装置による気液平衡測定(2成分系)依頼書　お客様入力シート",null,null,null,null,null,null,null,null,null,null,null,null,null,null,null,null,null,null,null,null,null,null,null,null,null,null,null,null,null,null,null,null,null,null,null,null,null,null,null,null,null,null,null,null,null,null,null,null,"(wt %)",null,null,"(kPa)"]
[null,"■お客様情報",null,null,null,null,null,null,null,null,null,null,null,null,null,null,null,null,null,null,null,null,null,null,null,null,null,null,null,null,null,null,null,null,null,null,null,null,null,null,null,null,null,null,null,null,null,null,null,null,"(mol %)"]
[null,"貴社名"]
[null,"部署名"]
[null,"お名前",null,null,null,null,null,null,null,null,null,null,null,null,null,null,null,null,null,null,null,null,null,null,null,null,null,null,"電話番号"]
[null,null,null,null,null,null,null,null,null,null,null,null,null,null,null,null,null,null,null,null,null,null,null,null,null,null,null,null,"FAX番号"]
[null,"ふりがな",null,null,null,null,null,null,null,null,null,null,null,null,null,null,null,null,null,null,null,null,null,null,null,null,null,null,"E-mail"]
[null,"所属先住所",null,null,null,null,null,"郵便番号"]
[null,null,null,null,null,null,null,"住所"]
[]
[null,"■気液平衡測定に関する情報　　　　※わかる範囲で出来るだけ具体的にご記入ください。"]
[null,1,"低沸点成分",null,null,null,null,null,"成分名",null,null,null,null,null,null,null,null,null,null,null,null,null,null,null,null,null,null,null,null,null,null,null,null,null,null,null,null,null,null,null,null,null,null,null,null,null,null,null,null,null,null,{"$f":"C16","v":"低沸点成分"},{"$f":"P16","v":0}]
[null,null,null,null,null,null,null,null,"CAS番号"]
[null,null,null,null,null,null,null,null,"化合物の種類"]
[null,null,null,null,null,null,null,null,"融点(℃)",null,null,null,null,null,null,null,null,null,null,null,null,null,null,null,null,null,"分子量(g/mol)",null,null,null,null,null,null,null,null,null,null,null,null,null,null,null,null,null,null,null,null,null,null,null,null,{"$f":"C26","v":"高沸点成分"},{"$f":"P26","v":0}]
[null,null,null,null,null,null,null,null,"沸点(℃)",null,null,null,null,null,null,null,null,null,null,null,null,null,null,null,null,null,"密度(g/cm3)"]
[null,null,null,null,null,null,null,null,"MSDSの有無",null,null,null,null,null,null,null,null,null,null,"・"]
[null,null,null,null,null,null,null,null,"安定性　※1",null,null,null,null,null,null,null,null,null,null,"・",null,null,null,null,"（",null,null,null,null,null,null,null,null,null,null,null,null,null,null,null,null,null,null,null,"）",null,null,null,null,null,null,null,null,null,null,null,null,null,null,null,null,null,null,null,null,null,null,null,null,null,null,null,null,null,null,null,null,44.05]
[null,null,null,null,null,null,null,null,"毒性　※1",null,null,null,null,null,null,null,null,null,null,"・",null,null,null,null,"（",null,null,null,null,null,null,null,null,null,null,null,null,null,null,null,null,null,null,null,"）",null,"指定なし","劇物","毒物",null,null,null,null,null,null,null,null,null,null,null,null,null,null,null,null,null,null,null,null,null,null,null,null,null,null,null,null,0.78800000000000003]
[null,null,null,null,null,null,null,null,"毒劇物の指定",null,null,null,null,null,null,null,null,null,null,"・",null,null,null,null,"・",null,null,null,null,null,null,null,null,null,null,null,null,null,null,null,null,null,null,null,null,null,false,false,false]
[null,null,null,null,null,null,null,null,"その他",null,null,null,null,null,null,null,null,null,null,null,null,null,null,null,null,null,null,null,null,null,null,null,null,null,null,null,null,null,null,null,null,null,null,null,null,null,null,null,null,null,null,null,null,null,null,null,null,null,null,null,null,null,null,null,null,null,null,null,null,null,null,null,null,null,null,null,null,null,null,null,null,null,null,null,null,null,null,null,"）"]
[null,2,"高沸点成分",null,null,null,null,null,"成分名",null,null,null,null,null,null,null,null,null,null,null,null,null,null,null,null,null,null,null,null,null,null,null,null,null,null,null,null,null,null,null,null,null,null,null,null,null,null,null,null,null,null,null,null,null,null,null,null,null,null,null,null,null,null,null,null,null,null,null,null,null,null,null,null,null,null,null,null,null,null,null,null,null,null,null,null,null,null,null,"）"]
[null,null,null,null,null,null,null,null,"CAS番号"]
[null,null,null,null,null,null,null,null,"化合物の種類"]
[null,null,null,null,null,null,null,null,"融点(℃)",null,null,null,null,null,null,null,null,null,null,null,null,null,null,null,null,null,"分子量(g/mol)",null,null,null,null,null,null,null,null,null,null,null,null,null,null,null,null,null,null,null,null,null,null,null,null,{"$f":"C36","v":"測定条件\n※2"},{"$f":"P36","v":"低沸点成分"}]
[null,null,null,null,null,null,null,null,"沸点(℃)",null,null,null,null,null,null,null,null,null,null,null,null,null,null,null,null,null,"密度(g/cm3)"]
[null,null,null,null,null,null,null,null,"MSDSの有無",null,null,null,null,null,null,null,null,null,null,"・"]
[null,null,null,null,null,null,null,null,"安定性　※1",null,null,null,null,null,null,null,null,null,null,"・",null,null,null,null,"（",null,null,null,null,null,null,null,null,null,null,null,null,null,null,null,null,null,null,null,"）"]
[null,null,null,null,null,null,null,null,"毒性　※1",null,null,null,null,null,null,null,null,null,null,"・",null,null,null,null,"（",null,null,null,null,null,null,null,null,null,null,null,null,null,null,null,null,null,null,null,"）",null,"指定なし","劇物","毒物"]
[null,null,null,null,null,null,null,null,"毒劇物の指定",null,null,null,null,null,null,null,null,null,null,null,null,null,null,null,null,null,null,null,null,null,null,null,null,null,null,null,null,null,null,null,null,null,null,null,null,null,false,false,false]
[null,null,null,null,null,null,null,null,"その他"]
[null,3,"測定条件\n※2",null,null,null,null,null,"条件No.",null,null,null,null,null,null,"低沸点成分",null,null,null,null,null,null,null,null,null,"高沸点成分",null,null,null,null,null,null,null,null,null,"系内圧力　"]
[null,null,null,null,null,null,null,null,null,null,null,null,null,null,null,{"$f":"IF(P16=\"\",\"\",P16)","v":""},null,null,null,null,null,null,null,null,null,{"$f":"IF(P26=\"\",\"\",P26)","v":""}]
[null,null,null,null,null,null,null,null,null,null,null,null,null,null,null,"(mol %)",null,null,null,null,null,null,null,null,null,{"$f":"P38","v":"(mol %)"},null,null,null,null,null,null,null,null,null,"(kPa)"]
[null,null,null,null,null,null,null,null,1,null,null,null,null,null,null,null,null,null,null,null,null,null,null,null,null,{"$f":"IF(P39=\"\",\"\",100-P39)","v":""}]
[null,null,null,null,null,null,null,null,2,null,null,null,null,null,null,null,null,null,null,null,null,null,null,null,null,{"$f":"IF(P40=\"\",\"\",100-P40)","v":""}]
[null,null,null,null,null,null,null,null,3,null,null,null,null,null,null,null,null,null,null,null,null,null,null,null,null,""]
[null,null,null,null,null,null,null,null,4,null,null,null,null,null,null,null,null,null,null,null,null,null,null,null,null,""]
[null,null,null,null,null,null,null,null,5,null,null,null,null,null,null,null,null,null,null,null,null,null,null,null,null,""]
[null,null,null,null,null,null,null,null,6,null,null,null,null,null,null,null,null,null,null,null,null,null,null,null,null,""]
[null,null,null,null,null,null,null,null,7,null,null,null,null,null,null,null,null,null,null,null,null,null,null,null,null,""]
[null,null,null,null,null,null,null,null,8,null,null,null,null,null,null,null,null,null,null,null,null,null,null,null,null,""]
[null,null,null,null,null,null,null,null,9,null,null,null,null,null,null,null,null,null,null,null,null,null,null,null,null,""]
[null,null,null,null,null,null,null,null,10,null,null,null,null,null,null,null,null,null,null,null,null,null,null,null,null,""]
[null,null,null,null,null,null,null,null,11,null,null,null,null,null,null,null,null,null,null,null,null,null,null,null,null,""]
[null,null,null,null,null,null,null,null,12,null,null,null,null,null,null,null,null,null,null,null,null,null,null,null,null,""]
[null,null,null,null,null,null,null,null,13,null,null,null,null,null,null,null,null,null,null,null,null,null,null,null,null,""]
[null,null,null,null,null,null,null,null,14,null,null,null,null,null,null,null,null,null,null,null,null,null,null,null,null,""]
[null,null,null,null,null,null,null,null,"ｺﾝﾃﾞﾝｻｰ温度(℃)",null,null,null,null,null,null,null,null,null,null,null,null,null,null,null,null,null,null,"※凝固点が低い物質の場合、凝固点以上に設定する必要があります。"]
[null,null,null,null,null,null,null,null,"その他"]
[null,4,"2層分離の有無",null,null,null,null,null,null,null,null,null,null,null,null,null,null,null,null,null,"・"]
[null,5,"当社への分析依頼",null,null,null,null,null,null,null,null,null,null,null,null,null,null,null,null,null,"・",null,null,null,null,null,null,null,null,"(",null,null,null,null,null,null,null,null,null,null,null,null,null,null,"）"]
[null,6,"分析方法",null,null,null,null,null,null,null,null,null,null,null,null,null,null,null,null,null,"・",null,null,null,null,"(",null,null,null,null,null,null,null,null,null,null,null,null,null,null,null,null,null,null,"）"]
[null,7,"GC分析条件開示の有無　※3",null,null,null,null,null,null,null,null,null,null,null,null,null,null,null,null,null,"・",null,null,null,null,null,null,null,null,null,null,null,null,null,null,null,null,null,null,null,null,null,null,null,null,null,null,null,"GC/FID",null,null,null,null,"・"]
[null,8,"原料提供の有無　※4",null,null,null,null,null,null,null,null,null,null,null,null,null,null,null,null,null,"・"]
[null,9,"測定終了後の釜残液の返却",null,null,null,null,null,null,null,null,null,null,null,null,null,null,null,null,null,"・"]
[null,10,"ご希望納期　※5"]
[null,11,"その他特記事項"]
[null,"■ 注意事項"]
[null,null,"※1　分解や異常反応が認められた場合及び、作業員の安全を確保できないと判断される場合は測定を中断させていただく場合があります。"]
[null,null,"※2　オスマー型気液平衡測定装置による気液平衡測定は原則、1日1条件実施で対応させて頂きます。(測定時間及び装置分解洗浄時間を含む)"]
[null,null,"※3　開示して頂けない場合はGC条件検討費が必要になります。気液平衡測定のみ弊社で実施し、測定後の試料(原料・気相・液相)をご送付する\n    　ことも可能です。GC以外の測定方法(滴定など)により分析することも可能です(要検討)。"]
[null,null,"※4　原液の必要量について、1条件あたり2成分合計で約300mL、10条件測定した場合、2成分合計で約3000mL必要です。"]
[null,null,"※5　納期は2成分系10条件測定を実施した場合、通常15営業日となります。お急ぎの場合は別途ご相談させていただきます。"]
[null,null,"※　　測定範囲は10mmHg(1.33kPa)～大気圧間で、沸点が40℃～200℃である物質のみ可能　融点は60℃程度まで"]
[null,null,"※　  測定中に問題が発生した場合は速やかにご連絡致します。"]
[null,null,"※　  重合、分解、異常反応が認められた場合は測定を中断する場合があります。"]
[null,null,"※　  重合等による装置破損または摺合せ外しが発生した場合は別途料金が発生する場合があります。"]

{"sheet":"お客様記入シート(3成分系) ","index":1,"n_rows":83,"n_cols":89,"rows_kept":83,"cut":false,"hidden":false,"merged":[[45,36,46,44],[47,36,47,44],[48,36,61,44],[54,22,54,28],[55,22,55,28],[56,22,56,28],[57,22,57,28],[58,22,58,28],[59,22,59,28],[60,22,60,28],[61,22,61,28],[45,29,45,35],[46,29,46,35],[47,29,47,35],[48,29,48,35],[49,29,49,35],[50,29,50,35],[51,29,51,35],[52,29,52,35],[53,29,53,35],[54,29,54,35],[55,29,55,35],[56,29,56,35],[57,29,57,35],[45,22,45,28],[46,22,46,28],[47,22,47,28],[48,22,48,28],[49,22,49,28],[50,22,50,28],[51,22,51,28],[52,22,52,28],[53,22,53,28],[45,15,45,21],[46,15,46,21],[47,15,47,21],[48,15,48,21],[49,15,49,21],[50,15,50,21],[51,15,51,21],[52,15,52,21],[53,15,53,21],[54,15,54,21],[55,15,55,21],[56,15,56,21],[71,2,71,14],[71,15,71,44],[75,2,75,44],[25,1,34,1],[25,2,34,7],[25,8,25,14],[25,15,25,44],[26,8,26,14],[26,15,26,44],[27,8,27,14],[69,2,69,14],[69,15,69,19],[69,20,69,21],[69,22,69,28],[70,2,70,14],[70,15,70,44],[67,2,67,14],[67,15,67,19],[67,20,67,21],[67,22,67,28],[62,8,62,14],[67,48,67,52],[68,2,68,14],[68,15,68,19],[68,20,68,21],[68,22,68,28],[65,2,65,14],[65,15,65,19],[65,20,65,21],[65,22,65,28],[65,30,65,43],[66,2,66,14],[66,15,66,19],[66,20,66,21],[66,26,66,43],[63,15,63,44],[64,2,64,14],[64,15,64,19],[64,20,64,21],[64,22,64,28],[60,8,60,14],[61,8,61,14],[57,15,57,21],[58,15,58,21],[59,15,59,21],[60,15,60,21],[61,15,61,21],[61,29,61,35],[62,15,62,26],[62,27,62,44],[63,8,63,14],[58,29,58,35],[59,29,59,35],[60,29,60,35],[49,8,49,14],[54,8,54,14],[55,8,55,14],[52,8,52,14],[53,8,53,14],[58,8,58,14],[59,8,59,14],[56,8,56,14],[44,8,44,14],[57,8,57,14],[44,15,44,44],[45,1,63,1],[45,2,63,7],[45,8,47,14],[35,1,44,1],[35,2,44,7],[50,8,50,14],[51,8,51,14],[48,8,48,14],[42,8,42,14],[42,15,42,18],[42,20,42,23],[42,25,42,43],[43,8,43,14],[43,15,43,43],[40,8,40,14],[40,15,40,18],[40,20,40,23],[40,24,40,44],[41,8,41,14],[41,15,41,18],[41,20,41,23],[41,25,41,43],[39,8,39,14],[39,15,39,25],[39,26,39,32],[39,33,39,44],[24,8,24,14],[24,15,24,44],[35,8,35,14],[35,15,35,44],[36,8,36,14],[36,15,36,44],[37,8,37,14],[37,15,37,44],[27,15,27,44],[28,8,28,14],[28,15,28,25],[28,26,28,32],[28,33,28,44],[29,8,29,14],[29,15,29,25],[29,26,29,32],[29,33,29,44],[34,8,34,14],[34,15,34,44],[32,8,32,14],[20,20,20,23],[20,24,20,44],[21,8,21,14],[21,15,21,18],[21,20,21,23],[21,25,21,43],[38,8,38,14],[38,15,38,25],[38,26,38,32],[38,33,38,44],[32,15,32,18],[32,20,32,23],[32,25,32,43],[33,8,33,14],[33,15,33,43],[30,8,30,14],[30,15,30,18],[30,20,30,23],[30,24,30,44],[31,8,31,14],[31,15,31,18],[31,20,31,23],[31,25,31,43],[18,26,18,32],[18,33,18,44],[19,8,19,14],[19,15,19,25],[19,26,19,32],[19,33,19,44],[15,1,24,1],[15,2,24,7],[15,8,15,14],[15,15,15,44],[16,8,16,14],[16,15,16,44],[17,8,17,14],[17,15,17,44],[18,8,18,14],[18,15,18,25],[22,8,22,14],[22,15,22,18],[22,20,22,23],[22,25,22,43],[23,8,23,14],[23,15,23,43],[20,8,20,14],[20,15,20,18],[10,1,10,11],[10,12,10,27],[10,28,10,31],[10,32,10,44],[11,1,12,6],[11,7,11,11],[11,12,11,44],[12,7,12,11],[12,12,12,44],[7,1,7,11],[7,12,7,44],[8,1,9,11],[8,12,9,27],[8,28,8,31],[8,32,8,44],[9,28,9,31],[9,32,9,44],[1,47,1,49],[2,47,2,49],[3,47,3,49],[4,1,4,44],[6,1,6,11],[6,12,6,44]]}
[]
[null,null,null,null,null,null,null,null,null,null,null,null,null,null,null,null,null,null,null,null,null,null,null,null,null,null,null,null,null,null,null,null,null,null,null,null,null,null,null,null,null,null,null,null,"第1分析センター 分析1課",null,{"$f":"#REF!","v":{"$error":"#REF!"}},{"$f":"#REF!","v":{"$error":"#REF!"}}]
[null,null,null,null,null,null,null,null,null,null,null,null,null,null,null,null,null,null,null,null,null,null,null,null,null,null,null,null,null,null,null,null,null,null,null,null,null,null,null,null,null,null,null,null,"〒739-0622 広島県大竹市晴海2丁目10番22号",null,{"$f":"#REF!","v":{"$error":"#REF!"}},{"$f":"#REF!","v":{"$error":"#REF!"}}]
[null,null,null,null,null,null,null,null,null,null,null,null,null,null,null,null,null,null,null,null,null,null,null,null,null,null,null,null,null,null,null,null,null,null,null,null,null,null,null,null,null,null,null,null,"TEL：(0827)59-1800　FAX：(0827)59-1805",null,{"$f":"#REF!","v":{"$error":"#REF!"}},{"$f":"#REF!","v":{"$error":"#REF!"}},null,null,"(mg/kg)",null,null,"(torr)"]
[null,"オスマー型気液平衡測定装置による気液平衡測定(3成分系)依頼書　お客様入力シート",null,null,null,null,null,null,null,null,null,null,null,null,null,null,null,null,null,null,null,null,null,null,null,null,null,null,null,null,null,null,null,null,null,null,null,null,null,null,null,null,null,null,null,null,null,null,null,null,"(wt %)",null,null,"(kPa)"]
[null,"■お客様情報",null,null,null,null,null,null,null,null,null,null,null,null,null,null,null,null,null,null,null,null,null,null,null,null,null,null,null,null,null,null,null,null,null,null,null,null,null,null,null,null,null,null,null,null,null,null,null,null,"(mol %)"]
[null,"貴社名"]
[null,"部署名"]
[null,"お名前",null,null,null,null,null,null,null,null,null,null,null,null,null,null,null,null,null,null,null,null,null,null,null,null,null,null,"電話番号"]
[null,null,null,null,null,null,null,null,null,null,null,null,null,null,null,null,null,null,null,null,null,null,null,null,null,null,null,null,"FAX番号"]
[null,"ふりがな",null,null,null,null,null,null,null,null,null,null,null,null,null,null,null,null,null,null,null,null,null,null,null,null,null,null,"E-mail"]
[null,"所属先住所",null,null,null,null,null,"郵便番号"]
[null,null,null,null,null,null,null,"住所"]
[]
[null,"■気液平衡測定に関する情報　　　　※わかる範囲で出来るだけ具体的にご記入ください。"]
[null,1,"低沸点成分     (第1成分)",null,null,null,null,null,"成分名",null,null,null,null,null,null,null,null,null,null,null,null,null,null,null,null,null,null,null,null,null,null,null,null,null,null,null,null,null,null,null,null,null,null,null,null,null,null,null,null,null,null,{"$f":"C16","v":"低沸点成分     (第1成分)"},{"$f":"P16","v":0}]
[null,null,null,null,null,null,null,null,"CAS番号"]
[null,null,null,null,null,null,null,null,"化合物の種類"]
[null,null,null,null,null,null,null,null,"融点(℃)",null,null,null,null,null,null,null,null,null,null,null,null,null,null,null,null,null,"分子量(g/mol)",null,null,null,null,null,null,null,null,null,null,null,null,null,null,null,null,null,null,null,null,null,null,null,null,{"$f":"C36","v":"高沸点成分     (第3成分)"},{"$f":"P36","v":0}]
[null,null,null,null,null,null,null,null,"沸点(℃)",null,null,null,null,null,null,null,null,null,null,null,null,null,null,null,null,null,"密度(g/cm3)"]
[null,null,null,null,null,null,null,null,"MSDSの有無",null,null,null,null,null,null,null,null,null,null,"・"]
[null,null,null,null,null,null,null,null,"安定性　※1",null,null,null,null,null,null,null,null,null,null,"・",null,null,null,null,"（",null,null,null,null,null,null,null,null,null,null,null,null,null,null,null,null,null,null,null,"）",null,null,null,null,null,null,null,null,null,null,null,null,null,null,null,null,null,null,null,null,null,null,null,null,null,null,null,null,null,null,null,null,44.05]
[null,null,null,null,null,null,null,null,"毒性　※1",null,null,null,null,null,null,null,null,null,null,"・",null,null,null,null,"（",null,null,null,null,null,null,null,null,null,null,null,null,null,null,null,null,null,null,null,"）",null,"指定なし","劇物","毒物",null,null,null,null,null,null,null,null,null,null,null,null,null,null,null,null,null,null,null,null,null,null,null,null,null,null,null,null,0.78800000000000003]
[null,null,null,null,null,null,null,null,"毒劇物の指定",null,null,null,null,null,null,null,null,null,null,"・",null,null,null,null,"・",null,null,null,null,null,null,null,null,null,null,null,null,null,null,null,null,null,null,null,null,null,false,false,false]
[null,null,null,null,null,null,null,null,"その他",null,null,null,null,null,null,null,null,null,null,null,null,null,null,null,null,null,null,null,null,null,null,null,null,null,null,null,null,null,null,null,null,null,null,null,null,null,null,null,null,null,null,null,null,null,null,null,null,null,null,null,null,null,null,null,null,null,null,null,null,null,null,null,null,null,null,null,null,null,null,null,null,null,null,null,null,null,null,null,"）"]
[null,2,"中沸点成分     (第2成分)",null,null,null,null,null,"成分名",null,null,null,null,null,null,null,null,null,null,null,null,null,null,null,null,null,null,null,null,null,null,null,null,null,null,null,null,null,null,null,null,null,null,null,null,null,null,null,null,null,null,null,null,null,null,null,null,null,null,null,null,null,null,null,null,null,null,null,null,null,null,null,null,null,null,null,null,null,null,null,null,null,null,null,null,null,null,null,"）"]
[null,null,null,null,null,null,null,null,"CAS番号"]
[null,null,null,null,null,null,null,null,"化合物の種類"]
[null,null,null,null,null,null,null,null,"融点(℃)",null,null,null,null,null,null,null,null,null,null,null,null,null,null,null,null,null,"分子量(g/mol)",null,null,null,null,null,null,null,null,null,null,null,null,null,null,null,null,null,null,null,null,null,null,null,null,{"$f":"C36","v":"高沸点成分     (第3成分)"},{"$f":"P36","v":0}]
[null,null,null,null,null,null,null,null,"沸点(℃)",null,null,null,null,null,null,null,null,null,null,null,null,null,null,null,null,null,"密度(g/cm3)"]
[null,null,null,null,null,null,null,null,"MSDSの有無",null,null,null,null,null,null,null,null,null,null,"・"]
[null,null,null,null,null,null,null,null,"安定性　※1",null,null,null,null,null,null,null,null,null,null,"・",null,null,null,null,"（",null,null,null,null,null,null,null,null,null,null,null,null,null,null,null,null,null,null,null,"）",null,null,null,null,null,null,null,null,null,null,null,null,null,null,null,null,null,null,null,null,null,null,null,null,null,null,null,null,null,null,null,null,44.05]
[null,null,null,null,null,null,null,null,"毒性　※1",null,null,null,null,null,null,null,null,null,null,"・",null,null,null,null,"（",null,null,null,null,null,null,null,null,null,null,null,null,null,null,null,null,null,null,null,"）",null,"指定なし","劇物","毒物",null,null,null,null,null,null,null,null,null,null,null,null,null,null,null,null,null,null,null,null,null,null,null,null,null,null,null,null,0.78800000000000003]
[null,null,null,null,null,null,null,null,"毒劇物の指定",null,null,null,null,null,null,null,null,null,null,"・",null,null,null,null,"・",null,null,null,null,null,null,null,null,null,null,null,null,null,null,null,null,null,null,null,null,null,false,false,false]
[null,null,null,null,null,null,null,null,"その他"]
[null,3,"高沸点成分     (第3成分)",null,null,null,null,null,"成分名",null,null,null,null,null,null,null,null,null,null,null,null,null,null,null,null,null,null,null,null,null,null,null,null,null,null,null,null,null,null,null,null,null,null,null,null,null,null,null,null,null,null,null,null,null,null,null,null,null,null,null,null,null,null,null,null,null,null,null,null,null,null,null,null,null,null,null,null,null,null,null,null,null,null,null,null,null,null,null,"）"]
[null,null,null,null,null,null,null,null,"CAS番号"]
[null,null,null,null,null,null,null,null,"化合物の種類"]
[null,null,null,null,null,null,null,null,"融点(℃)",null,null,null,null,null,null,null,null,null,null,null,null,null,null,null,null,null,"分子量(g/mol)",null,null,null,null,null,null,null,null,null,null,null,null,null,null,null,null,null,null,null,null,null,null,null,null,{"$f":"C46","v":"測定条件\n※2"},{"$f":"P46","v":"低沸点成分(第1成分)"}]
[null,null,null,null,null,null,null,null,"沸点(℃)",null,null,null,null,null,null,null,null,null,null,null,null,null,null,null,null,null,"密度(g/cm3)"]
[null,null,null,null,null,null,null,null,"MSDSの有無",null,null,null,null,null,null,null,null,null,null,"・"]
[null,null,null,null,null,null,null,null,"安定性　※1",null,null,null,null,null,null,null,null,null,null,"・",null,null,null,null,"（",null,null,null,null,null,null,null,null,null,null,null,null,null,null,null,null,null,null,null,"）"]
[null,null,null,null,null,null,null,null,"毒性　※1",null,null,null,null,null,null,null,null,null,null,"・",null,null,null,null,"（",null,null,null,null,null,null,null,null,null,null,null,null,null,null,null,null,null,null,null,"）",null,"指定なし","劇物","毒物"]
[null,null,null,null,null,null,null,null,"毒劇物の指定",null,null,null,null,null,null,null,null,null,null,null,null,null,null,null,null,null,null,null,null,null,null,null,null,null,null,null,null,null,null,null,null,null,null,null,null,null,false,false,false]
[null,null,null,null,null,null,null,null,"その他"]
[null,4,"測定条件\n※2",null,null,null,null,null,"条件No.",null,null,null,null,null,null,"低沸点成分(第1成分)",null,null,null,null,null,null,"中沸点成分(第2成分)",null,null,null,null,null,null,"高沸点成分(第3成分)",null,null,null,null,null,null,"系内圧力　"]
[null,null,null,null,null,null,null,null,null,null,null,null,null,null,null,{"$f":"IF(P16=\"\",\"\",P16)","v":""},null,null,null,null,null,null,{"$f":"IF(P26=\"\",\"\",P26)","v":""},null,null,null,null,null,null,{"$f":"IF(P36=\"\",\"\",P36)","v":""}]
[null,null,null,null,null,null,null,null,null,null,null,null,null,null,null,"(mol %)",null,null,null,null,null,null,{"$f":"P48","v":"(mol %)"},null,null,null,null,null,null,{"$f":"P48","v":"(mol %)"},null,null,null,null,null,null,"(kPa)"]
[null,null,null,null,null,null,null,null,1,null,null,null,null,null,null,null,null,null,null,null,null,null,null,null,null,null,null,null,null,{"$f":"IF(OR(P49=\"\",W49=\"\"),\"\",100-P49-W49)","v":""}]
[null,null,null,null,null,null,null,null,2,null,null,null,null,null,null,null,null,null,null,null,null,null,null,null,null,null,null,null,null,{"$f":"IF(OR(P50=\"\",W50=\"\"),\"\",100-P50-W50)","v":""}]
[null,null,null,null,null,null,null,null,3,null,null,null,null,null,null,null,null,null,null,null,null,null,null,null,null,null,null,null,null,""]
[null,null,null,null,null,null,null,null,4,null,null,null,null,null,null,null,null,null,null,null,null,null,null,null,null,null,null,null,null,""]
[null,null,null,null,null,null,null,null,5,null,null,null,null,null,null,null,null,null,null,null,null,null,null,null,null,null,null,null,null,""]
[null,null,null,null,null,null,null,null,6,null,null,null,null,null,null,null,null,null,null,null,null,null,null,null,null,null,null,null,null,""]
[null,null,null,null,null,null,null,null,7,null,null,null,null,null,null,null,null,null,null,null,null,null,null,null,null,null,null,null,null,""]
[null,null,null,null,null,null,null,null,8,null,null,null,null,null,null,null,null,null,null,null,null,null,null,null,null,null,null,null,null,""]
[null,null,null,null,null,null,null,null,9,null,null,null,null,null,null,null,null,null,null,null,null,null,null,null,null,null,null,null,null,""]
[null,null,null,null,null,null,null,null,10,null,null,null,null,null,null,null,null,null,null,null,null,null,null,null,null,null,null,null,null,""]
[null,null,null,null,null,null,null,null,11,null,null,null,null,null,null,null,null,null,null,null,null,null,null,null,null,null,null,null,null,""]
[null,null,null,null,null,null,null,null,12,null,null,null,null,null,null,null,null,null,null,null,null,null,null,null,null,null,null,null,null,""]
[null,null,null,null,null,null,null,null,13,null,null,null,null,null,null,null,null,null,null,null,null,null,null,null,null,null,null,null,null,""]
[null,null,null,null,null,null,null,null,14,null,null,null,null,null,null,null,null,null,null,null,null,null,null,null,null,null,null,null,null,""]
[null,null,null,null,null,null,null,null,"ｺﾝﾃﾞﾝｻｰ温度(℃)",null,null,null,null,null,null,null,null,null,null,null,null,null,null,null,null,null,null,"※凝固点が低い物質の場合、凝固点以上に設定する必要があります。"]
[null,null,null,null,null,null,null,null,"その他"]
[null,5,"2層分離の有無",null,null,null,null,null,null,null,null,null,null,null,null,null,null,null,null,null,"・"]
[null,6,"当社への分析依頼",null,null,null,null,null,null,null,null,null,null,null,null,null,null,null,null,null,"・",null,null,null,null,null,null,null,null,"(",null,null,null,null,null,null,null,null,null,null,null,null,null,null,"）"]
[null,7,"分析方法",null,null,null,null,null,null,null,null,null,null,null,null,null,null,null,null,null,"・",null,null,null,null,"(",null,null,null,null,null,null,null,null,null,null,null,null,null,null,null,null,null,null,"）"]
[null,8,"GC分析条件開示の有無　※3",null,null,null,null,null,null,null,null,null,null,null,null,null,null,null,null,null,"・",null,null,null,null,null,null,null,null,null,null,null,null,null,null,null,null,null,null,null,null,null,null,null,null,null,null,null,"GC/FID",null,null,null,null,"・"]
[null,9,"原料提供の有無　※4",null,null,null,null,null,null,null,null,null,null,null,null,null,null,null,null,null,"・"]
[null,10,"測定終了後の釜残液の返却",null,null,null,null,null,null,null,null,null,null,null,null,null,null,null,null,null,"・"]
[null,11,"ご希望納期　※5"]
[null,12,"その他特記事項"]
[null,"■ 注意事項"]
[null,null,"※1　分解や異常反応が認められた場合及び、作業員の安全を確保できないと判断される場合は測定を中断させていただく場合があります。"]
[null,null,"※2　オスマー型気液平衡測定装置による気液平衡測定は原則、1日1条件実施で対応させて頂きます。(測定時間及び装置分解洗浄時間を含む)"]
[null,null,"※3　開示して頂けない場合はGC条件検討費が必要になります。気液平衡測定のみ弊社で実施し、測定後の試料(原料・気相・液相)をご送付する\n    　ことも可能です。GC以外の測定方法(滴定など)により分析することも可能です(要検討)。"]
[null,null,"※4　原液の必要量について、1条件あたり3成分合計で約300mL、10条件測定した場合、3成分合計で約3000mL必要です。"]
[null,null,"※5　納期は3成分系10条件測定を実施した場合、通常15営業日となります。お急ぎの場合は別途ご相談させていただきます。"]
[null,null,"※　　測定範囲は10mmHg(1.33kPa)～大気圧間で、沸点が40℃～200℃である物質のみ可能　融点は60℃程度まで"]
[null,null,"※　　3成分系はX-Y曲線及びT-XY曲線の作図は致しません。分析結果一覧表として御連絡致します。"]
[null,null,"※　  測定中に問題が発生した場合は速やかにご連絡致します。"]
[null,null,"※　  重合、分解、異常反応が認められた場合は測定を中断する場合があります。"]
[null,null,"※　  重合等による装置破損または摺合せ外しが発生した場合は別途料金が発生する場合があります。"]

{"sheet":"★記入例★","index":2,"n_rows":72,"n_cols":89,"rows_kept":72,"cut":false,"hidden":false,"merged":[[61,2,61,14],[61,15,61,44],[65,2,65,44],[59,2,59,14],[59,15,59,19],[59,20,59,21],[59,22,59,28],[60,2,60,14],[60,15,60,44],[57,2,57,14],[57,15,57,19],[57,20,57,21],[57,22,57,28],[57,48,57,52],[58,2,58,14],[58,15,58,19],[58,20,58,21],[58,22,58,28],[55,2,55,14],[55,15,55,19],[55,20,55,21],[55,22,55,28],[55,30,55,43],[56,2,56,14],[56,15,56,19],[56,20,56,21],[56,26,56,43],[52,8,52,14],[52,15,52,26],[52,27,52,44],[53,8,53,14],[53,15,53,44],[54,2,54,14],[54,15,54,19],[54,20,54,21],[54,22,54,28],[50,8,50,14],[50,15,50,24],[50,25,50,34],[51,8,51,14],[51,15,51,24],[51,25,51,34],[48,8,48,14],[48,15,48,24],[48,25,48,34],[49,8,49,14],[49,15,49,24],[49,25,49,34],[46,8,46,14],[46,15,46,24],[46,25,46,34],[47,8,47,14],[47,15,47,24],[47,25,47,34],[44,8,44,14],[44,15,44,24],[44,25,44,34],[45,8,45,14],[45,15,45,24],[45,25,45,34],[42,25,42,34],[43,8,43,14],[43,15,43,24],[43,25,43,34],[40,8,40,14],[40,15,40,24],[40,25,40,34],[41,8,41,14],[41,15,41,24],[41,25,41,34],[34,8,34,14],[34,15,34,44],[35,1,53,1],[35,2,53,7],[35,8,37,14],[35,15,35,24],[35,25,35,34],[35,35,36,44],[36,15,36,24],[36,25,36,34],[25,1,34,1],[25,2,34,7],[37,15,37,24],[37,25,37,34],[37,35,37,44],[38,8,38,14],[38,15,38,24],[38,25,38,34],[38,35,51,44],[39,8,39,14],[39,15,39,24],[39,25,39,34],[42,8,42,14],[42,15,42,24],[32,8,32,14],[32,15,32,18],[32,20,32,23],[32,25,32,43],[33,8,33,14],[33,15,33,43],[30,8,30,14],[30,15,30,18],[30,20,30,23],[30,24,30,44],[31,8,31,14],[31,15,31,18],[31,20,31,23],[31,25,31,43],[29,8,29,14],[29,15,29,25],[29,26,29,32],[29,33,29,44],[24,8,24,14],[24,15,24,44],[25,8,25,14],[25,15,25,44],[26,8,26,14],[26,15,26,44],[27,8,27,14],[27,15,27,44],[20,20,20,23],[20,24,20,44],[21,8,21,14],[21,15,21,18],[21,20,21,23],[21,25,21,43],[28,8,28,14],[28,15,28,25],[28,26,28,32],[28,33,28,44],[18,26,18,32],[18,33,18,44],[19,8,19,14],[19,15,19,25],[19,26,19,32],[19,33,19,44],[15,1,24,1],[15,2,24,7],[15,8,15,14],[15,15,15,44],[16,8,16,14],[16,15,16,44],[17,8,17,14],[17,15,17,44],[18,8,18,14],[18,15,18,25],[22,8,22,14],[22,15,22,18],[22,20,22,23],[22,25,22,43],[23,8,23,14],[23,15,23,43],[20,8,20,14],[20,15,20,18],[10,1,10,11],[10,12,10,27],[10,28,10,31],[10,32,10,44],[11,1,12,6],[11,7,11,11],[11,12,11,44],[12,7,12,11],[12,12,12,44],[7,1,7,11],[7,12,7,44],[8,1,9,11],[8,12,9,27],[8,28,8,31],[8,32,8,44],[9,28,9,31],[9,32,9,44],[1,47,1,49],[2,47,2,49],[3,47,3,49],[4,1,4,44],[6,1,6,11],[6,12,6,44]]}
[]
[null,null,null,null,null,null,null,null,null,null,null,null,null,null,null,null,null,null,null,null,null,null,null,null,null,null,null,null,null,null,null,null,null,null,null,null,null,null,null,null,null,null,null,null,"第1分析センター 分析1課",null,{"$f":"#REF!","v":{"$error":"#REF!"}},{"$f":"#REF!","v":{"$error":"#REF!"}}]
[null,null,null,null,null,null,null,null,null,null,null,null,null,null,null,null,null,null,null,null,null,null,null,null,null,null,null,null,null,null,null,null,null,null,null,null,null,null,null,null,null,null,null,null,"〒739-0622 広島県大竹市晴海2丁目10番22号",null,{"$f":"#REF!","v":{"$error":"#REF!"}},{"$f":"#REF!","v":{"$error":"#REF!"}}]
[null,null,null,null,null,null,null,null,null,null,null,null,null,null,null,null,null,null,null,null,null,null,null,null,null,null,null,null,null,null,null,null,null,null,null,null,null,null,null,null,null,null,null,null,"TEL：(0827)59-1800　FAX：(0827)59-1805",null,{"$f":"#REF!","v":{"$error":"#REF!"}},{"$f":"#REF!","v":{"$error":"#REF!"}},null,null,"(mg/kg)",null,null,"(torr)"]
[null,"オスマー型気液平衡測定装置による気液平衡測定(2成分系)依頼書　お客様入力シート",null,null,null,null,null,null,null,null,null,null,null,null,null,null,null,null,null,null,null,null,null,null,null,null,null,null,null,null,null,null,null,null,null,null,null,null,null,null,null,null,null,null,null,null,null,null,null,null,"(wt %)",null,null,"(kPa)"]
[null,"■お客様情報",null,null,null,null,null,null,null,null,null,null,null,null,null,null,null,null,null,null,null,null,null,null,null,null,null,null,null,null,null,null,null,null,null,null,null,null,null,null,null,null,null,null,null,null,null,null,null,null,"(mol %)"]
[null,"貴社名",null,null,null,null,null,null,null,null,null,null,"株式会社アサヒテクノリサーチ"]
[null,"部署名",null,null,null,null,null,null,null,null,null,null,"第1分析センター分析1課"]
[null,"お名前",null,null,null,null,null,null,null,null,null,null,"旭　太郎",null,null,null,null,null,null,null,null,null,null,null,null,null,null,null,"電話番号",null,null,null,"0827-59-1800"]
[null,null,null,null,null,null,null,null,null,null,null,null,null,null,null,null,null,null,null,null,null,null,null,null,null,null,null,null,"FAX番号",null,null,null,"0827-59-1805"]
[null,"ふりがな",null,null,null,null,null,null,null,null,null,null,"あさひ　たろう",null,null,null,null,null,null,null,null,null,null,null,null,null,null,null,"E-mail",null,null,null,"○○○△△@.□□□.jp"]
[null,"所属先住所",null,null,null,null,null,"郵便番号",null,null,null,null,"739-0622"]
[null,null,null,null,null,null,null,"住所",null,null,null,null,"広島県大竹市晴海2-10-22"]
[]
[null,"■気液平衡測定に関する情報　　　　※わかる範囲で出来るだけ具体的にご記入ください。"]
[null,1,"低沸点成分",null,null,null,null,null,"成分名",null,null,null,null,null,null,"成分A",null,null,null,null,null,null,null,null,null,null,null,null,null,null,null,null,null,null,null,null,null,null,null,null,null,null,null,null,null,null,null,null,null,null,null,{"$f":"C16","v":"低沸点成分"},{"$f":"P16","v":"成分A"}]
[null,null,null,null,null,null,null,null,"CAS番号",null,null,null,null,null,null,"1111-1111"]
[null,null,null,null,null,null,null,null,"化合物の種類",null,null,null,null,null,null,"有機塩素化合物"]
[null,null,null,null,null,null,null,null,"融点(℃)",null,null,null,null,null,null,-50,null,null,null,null,null,null,null,null,null,null,"分子量(g/mol)",null,null,null,null,null,null,100,null,null,null,null,null,null,null,null,null,null,null,null,null,null,null,null,null,{"$f":"C26","v":"高沸点成分"},{"$f":"P26","v":"成分B"}]
[null,null,null,null,null,null,null,null,"沸点(℃)",null,null,null,null,null,null,100,null,null,null,null,null,null,null,null,null,null,"密度(g/cm3)",null,null,null,null,null,null,1.28]
[null,null,null,null,null,null,null,null,"MSDSの有無",null,null,null,null,null,null,null,null,null,null,"・"]
[null,null,null,null,null,null,null,null,"安定性　※1",null,null,null,null,null,null,null,null,null,null,"・",null,null,null,null,"（",null,null,null,null,null,null,null,null,null,null,null,null,null,null,null,null,null,null,null,"）",null,null,null,null,null,null,null,null,null,null,null,null,null,null,null,null,null,null,null,null,null,null,null,null,null,null,null,null,null,null,null,null,44.05]
[null,null,null,null,null,null,null,null,"毒性　※1",null,null,null,null,null,null,null,null,null,null,"・",null,null,null,null,"（","通常の試薬と同じ取扱",null,null,null,null,null,null,null,null,null,null,null,null,null,null,null,null,null,null,"）",null,"指定なし","劇物","毒物",null,null,null,null,null,null,null,null,null,null,null,null,null,null,null,null,null,null,null,null,null,null,null,null,null,null,null,null,0.78800000000000003]
[null,null,null,null,null,null,null,null,"毒劇物の指定",null,null,null,null,null,null,null,null,null,null,"・",null,null,null,null,"・",null,null,null,null,null,null,null,null,null,null,null,null,null,null,null,null,null,null,null,null,null,true,false,false]
[null,null,null,null,null,null,null,null,"その他",null,null,null,null,null,null,null,null,null,null,null,null,null,null,null,null,null,null,null,null,null,null,null,null,null,null,null,null,null,null,null,null,null,null,null,null,null,null,null,null,null,null,null,null,null,null,null,null,null,null,null,null,null,null,null,null,null,null,null,null,null,null,null,null,null,null,null,null,null,null,null,null,null,null,null,null,null,null,null,"）"]
[null,2,"高沸点成分",null,null,null,null,null,"成分名",null,null,null,null,null,null,"成分B",null,null,null,null,null,null,null,null,null,null,null,null,null,null,null,null,null,null,null,null,null,null,null,null,null,null,null,null,null,null,null,null,null,null,null,null,null,null,null,null,null,null,null,null,null,null,null,null,null,null,null,null,null,null,null,null,null,null,null,null,null,null,null,null,null,null,null,null,null,null,null,null,"）"]
[null,null,null,null,null,null,null,null,"CAS番号",null,null,null,null,null,null,"2222-2222"]
[null,null,null,null,null,null,null,null,"化合物の種類",null,null,null,null,null,null,"芳香族炭化水素"]
[null,null,null,null,null,null,null,null,"融点(℃)",null,null,null,null,null,null,10,null,null,null,null,null,null,null,null,null,null,"分子量(g/mol)",null,null,null,null,null,null,200,null,null,null,null,null,null,null,null,null,null,null,null,null,null,null,null,null,{"$f":"C36","v":"測定条件\n※2"},{"$f":"P36","v":"低沸点成分"}]
[null,null,null,null,null,null,null,null,"沸点(℃)",null,null,null,null,null,null,190,null,null,null,null,null,null,null,null,null,null,"密度(g/cm3)",null,null,null,null,null,null,1.01]
[null,null,null,null,null,null,null,null,"MSDSの有無",null,null,null,null,null,null,null,null,null,null,"・"]
[null,null,null,null,null,null,null,null,"安定性　※1",null,null,null,null,null,null,null,null,null,null,"・",null,null,null,null,"（","180℃以上で分解の可能性あり",null,null,null,null,null,null,null,null,null,null,null,null,null,null,null,null,null,null,"）"]
[null,null,null,null,null,null,null,null,"毒性　※1",null,null,null,null,null,null,null,null,null,null,"・",null,null,null,null,"（","吸入すると有害（蒸気）、皮膚刺激、強い眼刺激、発がんのおそれの",null,null,null,null,null,null,null,null,null,null,null,null,null,null,null,null,null,null,"）",null,"指定なし","劇物","毒物"]
[null,null,null,null,null,null,null,null,"毒劇物の指定",null,null,null,null,null,null,null,null,null,null,"・",null,null,null,null,"・",null,null,null,null,null,null,null,null,null,null,null,null,null,null,null,null,null,null,null,null,null,false,true,false]
[null,null,null,null,null,null,null,null,"その他",null,null,null,null,null,null,"取り扱い時は保護具着用のこと"]
[null,3,"測定条件\n※2",null,null,null,null,null,"条件No.",null,null,null,null,null,null,"低沸点成分",null,null,null,null,null,null,null,null,null,"高沸点成分",null,null,null,null,null,null,null,null,null,"系内圧力　"]
[null,null,null,null,null,null,null,null,null,null,null,null,null,null,null,{"$f":"IF(P16=\"\",\"\",P16)","v":"成分A"},null,null,null,null,null,null,null,null,null,{"$f":"IF(P26=\"\",\"\",P26)","v":"成分B"}]
[null,null,null,null,null,null,null,null,null,null,null,null,null,null,null,"(mol %)",null,null,null,null,null,null,null,null,null,{"$f":"P38","v":"(mol %)"},null,null,null,null,null,null,null,null,null,"(kPa)"]
[null,null,null,null,null,null,null,null,1,null,null,null,null,null,null,0.1,null,null,null,null,null,null,null,null,null,{"$f":"IF(P39=\"\",\"\",100-P39)","v":99.9},null,null,null,null,null,null,null,null,null,20]
[null,null,null,null,null,null,null,null,2,null,null,null,null,null,null,0.5,null,null,null,null,null,null,null,null,null,{"$f":"IF(P40=\"\",\"\",100-P40)","v":99.5}]
[null,null,null,null,null,null,null,null,3,null,null,null,null,null,null,1,null,null,null,null,null,null,null,null,null,99]
[null,null,null,null,null,null,null,null,4,null,null,null,null,null,null,20,null,null,null,null,null,null,null,null,null,80]
[null,null,null,null,null,null,null,null,5,null,null,null,null,null,null,40,null,null,null,null,null,null,null,null,null,60]
[null,null,null,null,null,null,null,null,6,null,null,null,null,null,null,60,null,null,null,null,null,null,null,null,null,40]
[null,null,null,null,null,null,null,null,7,null,null,null,null,null,null,80,null,null,null,null,null,null,null,null,null,20]
[null,null,null,null,null,null,null,null,8,null,null,null,null,null,null,90,null,null,null,null,null,null,null,null,null,10]
[null,null,null,null,null,null,null,null,9,null,null,null,null,null,null,99.5,null,null,null,null,null,null,null,null,null,0.5]
[null,null,null,null,null,null,null,null,10,null,null,null,null,null,null,99.9,null,null,null,null,null,null,null,null,null,9.9999999999994316E-2]
[null,null,null,null,null,null,null,null,11,null,null,null,null,null,null,null,null,null,null,null,null,null,null,null,null,""]
[null,null,null,null,null,null,null,null,12,null,null,null,null,null,null,null,null,null,null,null,null,null,null,null,null,""]
[null,null,null,null,null,null,null,null,13,null,null,null,null,null,null,null,null,null,null,null,null,null,null,null,null,""]
[null,null,null,null,null,null,null,null,14,null,null,null,null,null,null,null,null,null,null,null,null,null,null,null,null,""]
[null,null,null,null,null,null,null,null,"ｺﾝﾃﾞﾝｻｰ温度(℃)",null,null,null,null,null,null,10,null,null,null,null,null,null,null,null,null,null,null,"※凝固点が低い物質の場合、凝固点以上に設定する必要があります。"]
[null,null,null,null,null,null,null,null,"その他"]
[null,4,"2層分離の有無",null,null,null,null,null,null,null,null,null,null,null,null,null,null,null,null,null,"・"]
[null,5,"当社への分析依頼",null,null,null,null,null,null,null,null,null,null,null,null,null,null,null,null,null,"・",null,null,null,null,null,null,null,null,"(",null,null,null,null,null,null,null,null,null,null,null,null,null,null,"）"]
[null,6,"分析方法",null,null,null,null,null,null,null,null,null,null,null,null,null,null,null,null,null,"・",null,null,null,null,"(",null,null,null,null,null,null,null,null,null,null,null,null,null,null,null,null,null,null,"）"]
[null,7,"GC分析条件開示の有無　※3",null,null,null,null,null,null,null,null,null,null,null,null,null,null,null,null,null,"・",null,null,null,null,null,null,null,null,null,null,null,null,null,null,null,null,null,null,null,null,null,null,null,null,null,null,null,"GC/FID",null,null,null,null,"・"]
[null,8,"原料提供の有無　※4",null,null,null,null,null,null,null,null,null,null,null,null,null,null,null,null,null,"・"]
[null,9,"測定終了後の釜残液の返却",null,null,null,null,null,null,null,null,null,null,null,null,null,null,null,null,null,"・"]
[null,10,"ご希望納期　※5",null,null,null,null,null,null,null,null,null,null,null,null,"依頼後1か月以内"]
[null,11,"その他特記事項",null,null,null,null,null,null,null,null,null,null,null,null,"速報希望"]
[null,"■ 注意事項"]
[null,null,"※1　分解や異常反応が認められた場合及び、作業員の安全を確保できないと判断される場合は測定を中断させていただく場合があります。"]
[null,null,"※2　オスマー型気液平衡測定装置による気液平衡測定は原則、1日1条件実施で対応させて頂きます。(測定時間及び装置分解洗浄時間を含む)"]
[null,null,"※3　開示して頂けない場合はGC条件検討費が必要になります。気液平衡測定のみ弊社で実施し、測定後の試料(原料・気相・液相)をご送付する\n    　ことも可能です。GC以外の測定方法(滴定など)により分析することも可能です(要検討)。"]
[null,null,"※4　原液の必要量について、1条件あたり2成分合計で約300mL、10条件測定した場合、2成分合計で約3000mL必要です。"]
[null,null,"※5　納期は2成分系10条件測定を実施した場合、通常15営業日となります。お急ぎの場合は別途ご相談させていただきます。"]
[null,null,"※　　測定範囲は10mmHg(1.33kPa)～大気圧間で、沸点が40℃～200℃である物質のみ可能　融点は60℃程度まで"]
[null,null,"※　  測定中に問題が発生した場合は速やかにご連絡致します。"]
[null,null,"※　  重合、分解、異常反応が認められた場合は測定を中断する場合があります。"]
[null,null,"※　  重合等による装置破損または摺合せ外しが発生した場合は別途料金が発生する場合があります。"]